fUST/lending_fUST_20240206
["ID","MTS","AMOUNT","RATE_DAILY","PERIOD"]
[313355136,1707225043897,-314.02514431,0.000265,6]
[313355138,1707225043907,-155.00310006,0.000265,2]
[313355140,1707225043916,-280.43479172,0.000265,2]
[313355142,1707225043927,-765.83829115,0.000265,2]
[313355143,1707225043937,-8673.81002401,0.0002658,4]
[313355144,1707225043947,-579.0,0.000267,2]
[313355145,1707225043957,-3000.0,0.000269,2]
[313355146,1707225043968,-154.98112192,0.00027247,2]
[313355147,1707225043979,-156.08329275,0.00027253,2]
[313355148,1707225043988,-500.0,0.00027295,2]
[313355149,1707225043998,-209.14728312,0.00027396,2]
[313355150,1707225044008,-500.0,0.00027397,3]
[313355151,1707225044017,-502.83443206,0.00027397,3]
[313355152,1707225044027,-582.77363345,0.00027397,3]
[313355153,1707225044037,-488.04280479,0.00027397,3]
[313355154,1707225044047,-500.0,0.00027397,3]
[313355155,1707225044056,-500.0,0.00027397,3]
[313355156,1707225044066,-500.0,0.00027397,3]
[313355157,1707225044076,-500.0,0.00027397,3]
[313355158,1707225044086,-1000.0,0.00027397,2]
[313355159,1707225044096,-506.18537805,0.00027397,15]
[313355160,1707225044106,-500.0,0.00027397,2]
[313355161,1707225044116,-500.0,0.00027397,3]
[313355162,1707225044130,-276.4453728,0.00027397,3]
[313355163,1707225044140,-521.76030306,0.00027397,3]
[313355164,1707225044150,-500.0,0.00027397,3]
[313355165,1707225044159,-429.96061164,0.00027397,3]
[313355166,1707225044170,-375.38166832,0.00027397,3]
[313355167,1707225044179,-225.0,0.00027397,2]
[313355168,1707225044189,-235.06330571,0.00027397,3]
[313355169,1707225044198,-642.23,0.00027397,3]
[313355170,1707225044207,-500.0,0.00027397,3]
[313355171,1707225044218,-500.0,0.00027397,3]
[313355172,1707225044228,-161.96932222,0.00027397,3]
[313355173,1707225044238,-969.51,0.00027397,3]
[313355174,1707225044247,-500.0,0.00027397,3]
[313355175,1707225044256,-500.0,0.00027397,3]
[313355176,1707225044265,-523.75004663,0.00027397,3]
[313355177,1707225044275,-500.0,0.00027397,3]
[313355178,1707225044284,-500.0,0.00027397,3]
[313355179,1707225044293,-500.0,0.00027397,2]
[313355180,1707225044303,-500.0,0.00027397,3]
[313355181,1707225044312,-576.38,0.00027397,3]
[313355182,1707225044321,-535.1294643,0.00027397,3]
[313355183,1707225044330,-500.0,0.00027397,3]
[313355184,1707225044340,-500.0,0.00027397,2]
[313355185,1707225044349,-500.0,0.00027397,3]
[313355186,1707225044358,-500.0,0.00027397,3]
[313355187,1707225044368,-500.0,0.00027397,3]
[313355188,1707225044377,-500.0,0.00027397,3]
[313355189,1707225044386,-500.0,0.00027397,3]
[313355190,1707225044395,-500.0,0.00027397,3]
[313355191,1707225044405,-500.0,0.00027397,3]
[313355192,1707225044414,-500.0,0.00027397,3]
[313355193,1707225044542,-500.0,0.00027397,3]
[313355194,1707225044551,-378.50157558,0.00027397,3]
[313355195,1707225044561,-500.0,0.00027397,3]
[313355196,1707225044570,-500.0,0.00027397,3]
[313355197,1707225044579,-500.0,0.00027397,3]
[313355198,1707225044588,-500.0,0.00027397,3]
[313355199,1707225044597,-500.0,0.00027397,3]
[313355200,1707225044606,-500.0,0.00027397,3]
[313355201,1707225044615,-500.0,0.00027397,3]
[313355202,1707225044624,-500.0,0.00027397,3]
[313355203,1707225044633,-500.0,0.00027397,3]
[313355204,1707225044642,-500.0,0.00027397,3]
[313355205,1707225044651,-500.0,0.00027397,3]
[313355206,1707225044660,-500.0,0.00027397,3]
[313355207,1707225044670,-500.0,0.00027397,3]
[313355208,1707225044679,-500.0,0.00027397,3]
[313355209,1707225044688,-500.0,0.00027397,3]
[313355210,1707225044697,-500.0,0.00027397,3]
[313355211,1707225044706,-500.0,0.00027397,3]
[313355212,1707225044717,-500.0,0.00027397,3]
[313355213,1707225044727,-500.0,0.00027397,3]
[313355214,1707225044736,-500.0,0.00027397,3]
[313355215,1707225044745,-500.0,0.00027397,3]
[313355216,1707225044755,-500.0,0.00027397,3]
[313355217,1707225044764,-300.0,0.00027397,2]
[313355218,1707225044773,-500.0,0.00027397,3]
[313355219,1707225044782,-500.0,0.00027397,3]
[313355220,1707225044792,-500.0,0.00027397,3]
[313355221,1707225044801,-500.0,0.00027397,3]
[313355222,1707225044810,-500.0,0.00027397,3]
[313355223,1707225044819,-234.48807972,0.00027397,3]
[313355224,1707225044828,-1000.0,0.00027397,2]
[313355225,1707225044837,-500.0,0.00027397,3]
[313355226,1707225044847,-500.0,0.00027397,3]
[313355227,1707225044856,-500.0,0.00027397,3]
[313355228,1707225044865,-500.0,0.00027397,3]
[313355229,1707225044875,-500.0,0.00027397,3]
[313355230,1707225044885,-500.0,0.00027397,3]
[313355231,1707225044894,-500.0,0.00027397,3]
[313355232,1707225044903,-500.0,0.00027397,3]
[313355233,1707225044912,-500.0,0.00027397,3]
[313355234,1707225044921,-174.3742027,0.00027397,3]
[313355235,1707225044931,-500.0,0.00027397,3]
[313355236,1707225044941,-435.63803697,0.00027397,3]
[313355237,1707225044950,-500.0,0.00027397,3]
[313355238,1707225044959,-500.0,0.00027397,3]
[313355239,1707225044973,-500.0,0.00027397,3]
[313355240,1707225044982,-414.41115783,0.00027397,3]
[313355241,1707225044991,-500.0,0.00027397,3]
[313355242,1707225045000,-500.0,0.00027397,3]
[313355243,1707225045010,-500.0,0.00027397,3]
[313355244,1707225045018,-3138.3,0.00027397,3]
[313355245,1707225045028,-515.7174323,0.00027397,3]
[313355246,1707225045037,-3858.03,0.00027397,3]
[313355247,1707225045046,-500.0,0.00027397,3]
[313355248,1707225045056,-500.0,0.00027397,3]
[313355249,1707225045066,-500.0,0.00027397,3]
[313355250,1707225045075,-4146.53,0.00027397,3]
[313355251,1707225045085,-500.0,0.00027397,3]
[313355252,1707225045094,-457.08718724,0.00027397,3]
[313355253,1707225045103,-214.71627006,0.00027397,3]
[313355254,1707225045112,-500.0,0.00027397,3]
[313355255,1707225045124,-500.0,0.00027397,3]
[313355256,1707225045133,-500.0,0.00027397,3]
[313355257,1707225045143,-500.0,0.00027397,3]
[313355258,1707225045155,-522.47697982,0.00027397,3]
[313355259,1707225045165,-500.0,0.00027397,3]
[313355260,1707225045175,-500.0,0.00027397,3]
[313355261,1707225045183,-500.0,0.00027397,3]
[313355262,1707225045193,-522.07,0.00027397,3]
[313355263,1707225045205,-500.0,0.00027397,3]
[313355264,1707225045216,-500.0,0.00027397,3]
[313355265,1707225045225,-500.0,0.00027397,3]
[313355266,1707225045234,-500.0,0.00027397,3]
[313355267,1707225045243,-500.0,0.00027397,3]
[313355268,1707225045253,-5410.92,0.00027397,3]
[313355269,1707225045262,-500.0,0.00027397,3]
[313355270,1707225045271,-500.0,0.00027397,3]
[313355271,1707225045280,-518.66224676,0.00027397,3]
[313355272,1707225045290,-960.09,0.00027397,3]
[313355273,1707225045299,-500.0,0.00027397,3]
[313355274,1707225045309,-500.0,0.00027397,3]
[313355275,1707225045318,-587.31,0.00027397,3]
[313355276,1707225045327,-500.0,0.00027397,3]
[313355277,1707225045336,-1000.0,0.00027397,2]
[313355278,1707225045345,-500.0,0.00027397,3]
[313355279,1707225045354,-500.0,0.00027397,3]
[313355280,1707225045364,-500.0,0.00027397,3]
[313355281,1707225045374,-500.0,0.00027397,3]
[313355282,1707225045383,-500.0,0.00027397,3]
[313355283,1707225045391,-500.0,0.00027397,3]
[313355284,1707225045401,-500.0,0.00027397,3]
[313355285,1707225045410,-538.36019815,0.00027397,3]
[313355286,1707225045419,-500.0,0.00027397,3]
[313355287,1707225045428,-2737.61,0.00027397,3]
[313355288,1707225045438,-29.57206637,0.00027397,3]
[313355319,1707225046693,-2418.12,0.00026476,3]
[313355321,1707225046702,-595.16995883,0.00027397,3]
[313355323,1707225046712,-500.0,0.00027397,3]
[313355325,1707225046722,-500.0,0.00027397,3]
[313355327,1707225046731,-500.0,0.00027397,3]
[313355329,1707225046740,-500.0,0.00027397,3]
[313355331,1707225046749,-513.40922285,0.00027397,3]
[313355333,1707225046758,-500.0,0.00027397,3]
[313355335,1707225046767,-500.0,0.00027397,3]
[313355337,1707225046776,-628.17,0.00027397,3]
[313355339,1707225046785,-518.46650852,0.00027397,3]
[313355341,1707225046794,-500.0,0.00027397,2]
[313355343,1707225046802,-155.0,0.00027397,2]
[313355346,1707225046811,-10000.0,0.00027397,10]
[313355349,1707225046820,-500.0,0.00027397,3]
[313355351,1707225046829,-1915.3,0.00027397,3]
[313355353,1707225046838,-1687.08,0.00027397,3]
[313355355,1707225046848,-1474.29,0.00027397,3]
[313355357,1707225046857,-435.09847913,0.00027397,3]
[313355359,1707225046865,-500.0,0.00027397,3]
[313355361,1707225046874,-500.23782385,0.00027397,3]
[313355363,1707225046883,-207.67499752,0.00027397,3]
[313355365,1707225046892,-500.0,0.00027397,3]
[313355367,1707225046901,-500.0,0.00027397,3]
[313355368,1707225046910,-500.0,0.00027397,3]
[313355370,1707225046919,-500.0,0.00027397,3]
[313355372,1707225046929,-147.3066412,0.00027397,3]
[313355398,1707226122873,154.0,0.00029,30]
[313355418,1707226234395,-155.00620025,0.00021128,2]
[313355419,1707226234405,-500.0,0.00021128,2]
[313355420,1707226234415,-155.00620025,0.00021129,4]
[313355421,1707226234425,-3494.79933315,0.00021129,2]
[313355422,1707226234435,-1513.05908057,0.00021129,2]
[313355423,1707226234444,-83908.04614101,0.00021152,2]
[313355424,1707226234453,-24900.0,0.00021153,2]
[313355426,1707226234463,-475.389845,0.00021731,2]
[313355428,1707226234474,-200.0,0.00023255,7]
[313355430,1707226234483,-151.0,0.00023739,2]
[313355431,1707226234495,-24135.3433891,0.0002411,2]
[313355432,1707226234505,-280.0,0.00025581,7]
[313355433,1707226234514,-155.00310006,0.00026,7]
[313355434,1707226234523,-151.0,0.00026327,2]
[313355435,1707226234533,-500.0,0.00026495,2]
[313355436,1707226234542,-500.0,0.00026495,2]
[313355437,1707226234551,-500.0,0.00026495,2]
[313355438,1707226234561,-155.02170304,0.00026499,2]
[313355439,1707226234571,-2088.61407986,0.000265,2]
[313355440,1707226234581,-621.90621018,0.000265,2]
[313355441,1707226234590,-191.87343283,0.000265,2]
[313355442,1707226234600,-375.62709802,0.000265,6]
[313355443,1707226234609,-1829.60430493,0.000265,2]
[313355444,1707226234618,-300.0,0.000265,2]
[313355445,1707226234627,-155.8961339,0.00026698,2]
[313355446,1707226234637,-1305.33185237,0.00026698,2]
[313355447,1707226234646,-1575.3584482,0.00026698,2]
[313355448,1707226234655,-1696.77050797,0.000269,2]
[313355449,1707226234664,-162.0,0.00027,2]
[313355450,1707226234674,-1000.0,0.00027,27]
[313355451,1707226234683,-154.98112192,0.00027179,2]
[313355452,1707226234692,-172.59064175,0.00027296,2]
[313355453,1707226234701,-276.68715692,0.00027296,2]
[313355454,1707226234710,-604.33364972,0.00027296,2]
[313355455,1707226234721,-500.0,0.00027296,2]
[313355456,1707226234730,-500.0,0.00027296,2]
[313355457,1707226234739,-190.15257647,0.00027296,2]
[313355458,1707226234748,-333.16383533,0.00027296,2]
[313355459,1707226234757,-500.0,0.00027296,2]
[313355460,1707226234766,-345.93298018,0.00027296,2]
[313355461,1707226234775,-500.0,0.00027296,2]
[313355462,1707226234784,-500.0,0.00027296,2]
[313355463,1707226234794,-500.0,0.00027296,2]
[313355464,1707226234803,-159.23014037,0.00027296,2]
[313355465,1707226234812,-40579.06265885,0.00027297,2]
[313355466,1707226234824,-43413.06085864,0.00027297,2]
[313355486,1707226237921,-500.0,0.00026495,2]
[313355487,1707226237931,-500.0,0.00026495,2]
[313355488,1707226237940,-500.0,0.00026495,2]
[313355489,1707226237949,-554.07098427,0.00026495,2]
[313355491,1707226237958,-500.0,0.00026495,2]
[313355493,1707226237968,-376.05519048,0.00026495,2]
[313355494,1707226237977,-500.0,0.00026495,2]
[313355496,1707226237986,-500.0,0.00026495,2]
[313355498,1707226237995,-500.0,0.00026495,2]
[313355501,1707226238005,-500.0,0.00026495,2]
[313355503,1707226238014,-500.0,0.00026495,2]
[313355505,1707226238023,-500.0,0.00026495,2]
[313355507,1707226238032,-467.85226768,0.00026495,2]
[313355509,1707226238041,-500.0,0.00026495,2]
[313355511,1707226238050,-500.0,0.00026495,2]
[313355513,1707226238059,-35.55962808,0.00026495,2]
[313355515,1707226238072,-464.44037192,0.00026495,2]
[313355518,1707226238081,-500.0,0.00026495,2]
[313355520,1707226238090,-500.0,0.00026495,2]
[313355522,1707226238100,-500.0,0.00026495,2]
[313355524,1707226238109,-500.0,0.00026495,2]
[313355526,1707226238119,-500.0,0.00026495,2]
[313355528,1707226238128,-500.0,0.00026495,2]
[313355529,1707226238138,-500.0,0.00026495,2]
[313355530,1707226238147,-500.0,0.00026495,2]
[313355531,1707226238156,-500.0,0.00026495,2]
[313355532,1707226238166,-500.0,0.00026495,2]
[313355534,1707226238175,-500.0,0.00026495,2]
[313355535,1707226238184,-500.0,0.00026495,2]
[313355536,1707226238194,-500.0,0.00026495,2]
[313355537,1707226238203,-500.0,0.00026495,2]
[313355538,1707226238212,-500.0,0.00026495,2]
[313355539,1707226238222,-500.0,0.00026495,2]
[313355540,1707226238231,-500.0,0.00026495,2]
[313355541,1707226238240,-500.0,0.00026495,2]
[313355542,1707226238249,-500.0,0.00026495,2]
[313355543,1707226238258,-500.0,0.00026495,2]
[313355544,1707226238267,-500.0,0.00026495,2]
[313355545,1707226238276,-500.0,0.00026495,2]
[313355546,1707226238285,-500.0,0.00026495,2]
[313355547,1707226238294,-500.0,0.00026495,2]
[313355548,1707226238303,-500.0,0.00026495,2]
[313355549,1707226238312,-500.0,0.00026495,2]
[313355550,1707226238322,-2640.49,0.00027287,3]
[313355551,1707226238331,-130941.29508315,0.00027297,2]
[313355552,1707226238343,-1234.49999916,0.00027297,2]
[313355556,1707226241131,-1970.35490155,0.00027297,2]
[313355557,1707226241143,-10996.77372916,0.00027297,2]
[313355559,1707226241155,-7857.45509845,0.00027297,2]
[313355561,1707226241166,-4670.70228447,0.00027297,2]
[313355563,1707226241177,-14548.55820207,0.00027297,2]
[313355598,1707226242923,-237.694922,0.00026397,2]
[313355599,1707226242932,-5499.21022616,0.00027297,2]
[313355600,1707226242944,-9960.83375264,0.00027297,2]
[313355601,1707226242956,-3017.52261407,0.00027297,2]
[313355602,1707226242983,-1310.67059163,0.00027297,2]
[313355603,1707226242992,-500.0,0.000273,2]
[313355604,1707226243003,-3119.05429636,0.00027391,2]
[313355605,1707226243013,-1017.67059015,0.00027396,2]
[313355608,1707226243022,-500.0,0.00027397,3]
[313355611,1707226243032,-500.0,0.00027397,3]
[313355612,1707226243041,-332.15925439,0.00027397,3]
[313355613,1707226243051,-1000.0,0.00027397,2]
[313355614,1707226243060,-500.0,0.00027397,3]
[313355615,1707226243069,-500.0,0.00027397,3]
[313355616,1707226243078,-500.0,0.00027397,3]
[313355617,1707226243088,-500.0,0.00027397,3]
[313355618,1707226243097,-500.0,0.00027397,2]
[313355619,1707226243107,-500.0,0.00027397,3]
[313355620,1707226243116,-500.0,0.00027397,3]
[313355621,1707226243125,-552.36,0.00027397,3]
[313355622,1707226243135,-500.0,0.00027397,3]
[313355623,1707226243145,-500.0,0.00027397,3]
[313355624,1707226243155,-636.38946417,0.00027397,3]
[313355625,1707226243165,-500.0,0.00027397,3]
[313355626,1707226243175,-500.0,0.00027397,3]
[313355627,1707226243184,-500.0,0.00027397,3]
[313355628,1707226243194,-500.0,0.00027397,3]
[313355629,1707226243203,-500.0,0.00027397,3]
[313355630,1707226243213,-500.0,0.00027397,3]
[313355631,1707226243224,-500.0,0.00027397,3]
[313355632,1707226243233,-500.0,0.00027397,3]
[313355633,1707226243242,-500.0,0.00027397,3]
[313355634,1707226243252,-300.0,0.00027397,2]
[313355635,1707226243261,-500.0,0.00027397,3]
[313355636,1707226243270,-500.0,0.00027397,3]
[313355637,1707226243279,-500.0,0.00027397,3]
[313355638,1707226243289,-1008.52430616,0.00027397,2]
[313355639,1707226243299,-500.0,0.00027397,3]
[313355640,1707226243309,-308.2147229,0.00027397,3]
[313355641,1707226243318,-500.0,0.00027397,3]
[313355642,1707226243328,-500.0,0.00027397,3]
[313355643,1707226243337,-500.0,0.00027397,3]
[313355644,1707226243347,-500.0,0.00027397,3]
[313355645,1707226243356,-500.0,0.00027397,3]
[313355646,1707226243365,-500.0,0.00027397,3]
[313355647,1707226243375,-500.0,0.00027397,3]
[313355648,1707226243385,-500.0,0.00027397,3]
[313355649,1707226243394,-500.0,0.00027397,3]
[313355650,1707226243403,-657.13,0.00027397,3]
[313355651,1707226243413,-500.0,0.00027397,3]
[313355652,1707226243422,-929.12,0.00027397,3]
[313355653,1707226243432,-500.0,0.00027397,3]
[313355654,1707226243442,-500.0,0.00027397,3]
[313355655,1707226243452,-500.0,0.00027397,3]
[313355656,1707226243462,-151.0,0.00027397,2]
[313355657,1707226243472,-500.0,0.00027397,3]
[313355658,1707226243482,-500.0,0.00027397,3]
[313355659,1707226243493,-347.85204275,0.00027397,3]
[313355660,1707226243503,-500.0,0.00027397,3]
[313355661,1707226243513,-333.97015587,0.00027397,3]
[313355662,1707226243524,-647.75999546,0.00027397,2]
[313355663,1707226243533,-500.0,0.00027397,3]
[313355664,1707226243543,-500.0,0.00027397,3]
[313355665,1707226243552,-500.0,0.00027397,3]
[313355666,1707226243562,-500.0,0.00027397,3]
[313355667,1707226243571,-500.0,0.00027397,3]
[313355668,1707226243581,-500.0,0.00027397,3]
[313355669,1707226243591,-401.89506063,0.00027397,3]
[313355670,1707226243600,-521.70792944,0.00027397,3]
[313355671,1707226243610,-500.0,0.00027397,3]
[313355672,1707226243620,-500.0,0.00027397,3]
[313355673,1707226243630,-500.0,0.00027397,3]
[313355674,1707226243639,-501.01811761,0.00027397,3]
[313355675,1707226243649,-500.0,0.00027397,3]
[313355676,1707226243658,-610.81401891,0.00027397,3]
[313355677,1707226243668,-500.0,0.00027397,3]
[313355678,1707226243678,-500.0,0.00027397,3]
[313355679,1707226243688,-504.04931601,0.00027397,3]
[313355680,1707226243697,-500.0,0.00027397,3]
[313355681,1707226243706,-277.16826861,0.00027397,3]
[313355682,1707226243716,-514.31136919,0.00027397,3]
[313355683,1707226243727,-500.0,0.00027397,3]
[313355684,1707226243736,-500.0,0.00027397,3]
[313355685,1707226243745,-531.72021752,0.00027397,3]
[313355686,1707226243755,-500.0,0.00027397,3]
[313355687,1707226243765,-500.0,0.00027397,3]
[313355688,1707226243774,-520.57142447,0.00027397,3]
[313355689,1707226243783,-500.0,0.00027397,3]
[313355690,1707226243793,-500.0,0.00027397,3]
[313355691,1707226243802,-533.32643859,0.00027397,3]
[313355692,1707226243812,-500.0,0.00027397,2]
[313355693,1707226243822,-500.0,0.00027397,3]
[313355694,1707226243831,-500.0,0.00027397,3]
[313355695,1707226243840,-500.0,0.00027397,3]
[313355696,1707226243850,-500.0,0.00027397,3]
[313355697,1707226243860,-500.0,0.00027397,3]
[313355698,1707226243870,-500.0,0.00027397,3]
[313355699,1707226243879,-500.0,0.00027397,3]
[313355700,1707226243888,-500.0,0.00027397,3]
[313355701,1707226243898,-500.0,0.00027397,3]
[313355702,1707226243908,-151.0,0.00027397,2]
[313355703,1707226243918,-151.0,0.00027397,2]
[313355704,1707226243928,-151.0,0.00027397,2]
[313355705,1707226243937,-151.0,0.00027397,2]
[313355706,1707226243947,-500.0,0.00027397,3]
[313355707,1707226243956,-500.0,0.00027397,3]
[313355708,1707226243966,-500.0,0.00027397,3]
[313355709,1707226243977,-193.41239296,0.00027397,3]
[313355710,1707226243987,-500.0,0.00027397,3]
[313355711,1707226243997,-500.0,0.00027397,3]
[313355712,1707226244006,-500.0,0.00027397,3]
[313355713,1707226244016,-151.62057,0.00027397,2]
[313355714,1707226244025,-500.0,0.00027397,3]
[313355715,1707226244034,-500.0,0.00027397,3]
[313355716,1707226244044,-500.0,0.00027397,3]
[313355717,1707226244054,-187.22446457,0.00027397,3]
[313355718,1707226244063,-500.0,0.00027397,3]
[313355719,1707226244072,-3446.78,0.00027397,3]
[313355720,1707226244082,-500.0,0.00027397,3]
[313355721,1707226244091,-965.65722465,0.00027397,3]
[313355765,1707227296566,1297.21,0.0003,120]
[313355828,1707227438101,-155.00620025,0.00021014,4]
[313355830,1707227438111,-155.00620025,0.00021014,2]
[313355832,1707227438120,-2605.60915647,0.00021015,2]
[313355834,1707227438130,-196.89640269,0.00021016,2]
[313355836,1707227438141,-1253.49881705,0.00021016,2]
[313356081,1707227443060,-62.66386083,0.00021016,2]
[313356083,1707227443069,-3121.12632416,0.00021052,2]
[313356085,1707227443078,-6407.37066038,0.0002411,2]
[313356087,1707227443087,-372.60738654,0.0002411,2]
[313356088,1707227443096,-924.92119916,0.0002411,2]
[313356089,1707227443116,-786.21326004,0.0002411,2]
[313356090,1707227443125,-24900.0,0.00024148,2]
[313356091,1707227443133,-167.770853,0.0002499,2]
[313356092,1707227443143,-237.694922,0.00025138,2]
[313356093,1707227443152,-200.0,0.0002652,15]
[313356094,1707227443161,-526.19780977,0.00026977,2]
[313356095,1707227443171,-8540.0,0.00027,4]
[313356097,1707227443181,-379.20986097,0.00027287,3]
[313356099,1707227443191,-309.98760161,0.00027395,2]
[313356101,1707227443201,-155.00775039,0.00027395,7]
[313356103,1707227443211,-500.0,0.00027396,2]
[313356105,1707227443221,-152.89502116,0.00027396,2]
[313356110,1707227443233,-500.0,0.00027396,2]
[313356113,1707227443244,-500.0,0.00027396,2]
[313356114,1707227443256,-500.0,0.00027396,2]
[313356117,1707227443266,-500.0,0.00027396,2]
[313356120,1707227443278,-500.0,0.00027396,2]
[313356123,1707227443287,-500.0,0.00027396,2]
[313356126,1707227443298,-496.78522677,0.00027396,2]
[313356128,1707227443307,-170623.17928284,0.00027397,7]
[313356130,1707227443319,-155.74526226,0.00027397,2]
[313356132,1707227443330,-810.83834793,0.00027397,2]
[313356133,1707227443340,-500.0,0.00027397,3]
[313356135,1707227443349,-500.0,0.00027397,3]
[313356137,1707227443358,-1000.0,0.00027397,2]
[313356139,1707227443366,-500.0,0.00027397,3]
[313356141,1707227443375,-500.0,0.00027397,3]
[313356143,1707227443384,-500.0,0.00027397,3]
[313356145,1707227443394,-500.0,0.00027397,3]
[313356147,1707227443402,-500.0,0.00027397,3]
[313356149,1707227443411,-500.0,0.00027397,2]
[313356151,1707227443420,-500.0,0.00027397,3]
[313356153,1707227443429,-500.0,0.00027397,3]
[313356155,1707227443438,-500.0,0.00027397,3]
[313356157,1707227443448,-500.0,0.00027397,3]
[313356159,1707227443457,-500.0,0.00027397,3]
[313356161,1707227443466,-500.0,0.00027397,3]
[313356163,1707227443475,-500.0,0.00027397,3]
[313356165,1707227443484,-500.0,0.00027397,3]
[313356167,1707227443493,-500.0,0.00027397,3]
[313356169,1707227443503,-500.0,0.00027397,3]
[313356171,1707227443512,-500.0,0.00027397,3]
[313356173,1707227443520,-500.0,0.00027397,3]
[313356175,1707227443529,-500.0,0.00027397,3]
[313356177,1707227443538,-500.0,0.00027397,3]
[313356179,1707227443547,-601.60690583,0.00027397,3]
[313356181,1707227443556,-629.75,0.00027397,3]
[313356183,1707227443566,-449.26871446,0.00027397,3]
[313356185,1707227443575,-890.4,0.00027397,3]
[313356187,1707227443585,-155.0,0.00027397,2]
[313356189,1707227443594,-500.0,0.00027397,3]
[313356191,1707227443604,-500.0,0.00027397,3]
[313356193,1707227443613,-500.0,0.00027397,3]
[313356195,1707227443622,-500.0,0.00027397,3]
[313356197,1707227443632,-500.0,0.00027397,3]
[313356199,1707227443641,-500.0,0.00027397,3]
[313356201,1707227443650,-500.0,0.00027397,3]
[313356203,1707227443659,-273.04314162,0.00027397,3]
[313356205,1707227443668,-500.0,0.00027397,3]
[313356207,1707227443677,-500.0,0.00027397,3]
[313356209,1707227443686,-500.0,0.00027397,3]
[313356211,1707227443696,-500.0,0.00027397,3]
[313356213,1707227443706,-500.0,0.00027397,3]
[313356215,1707227443715,-453.55708389,0.00027397,3]
[313356217,1707227443725,-500.0,0.00027397,3]
[313356219,1707227443734,-500.0,0.00027397,3]
[313356221,1707227443744,-500.0,0.00027397,2]
[313356223,1707227443754,-500.0,0.00027397,3]
[313356226,1707227443764,-500.0,0.00027397,3]
[313356228,1707227443773,-500.0,0.00027397,3]
[313356230,1707227443783,-500.0,0.00027397,3]
[313356232,1707227443792,-444.30257714,0.00027397,3]
[313356234,1707227443802,-500.0,0.00027397,3]
[313356236,1707227443811,-500.0,0.00027397,3]
[313356238,1707227443821,-500.0,0.00027397,3]
[313356239,1707227443830,-194.7869234,0.00027397,3]
[313356241,1707227443839,-500.0,0.00027397,3]
[313356243,1707227443849,-500.0,0.00027397,3]
[313356246,1707227443862,-500.0,0.00027397,3]
[313356247,1707227443871,-500.0,0.00027397,3]
[313356250,1707227443880,-500.0,0.00027397,3]
[313356251,1707227443890,-500.0,0.00027397,3]
[313356254,1707227443900,-500.0,0.00027397,3]
[313356256,1707227443909,-500.0,0.00027397,3]
[313356258,1707227443919,-500.0,0.00027397,3]
[313356260,1707227443928,-200.23933207,0.00027397,3]
[313356262,1707227443939,-2326.27,0.00027397,3]
[313356264,1707227443949,-276.00505215,0.00027397,3]
[313356266,1707227443958,-500.0,0.00027397,3]
[313356268,1707227443967,-500.0,0.00027397,3]
[313356270,1707227443976,-1504.92,0.00027397,3]
[313356272,1707227443986,-529.35,0.00027397,3]
[313356274,1707227443995,-493.5,0.00027397,3]
[313356276,1707227444006,-500.0,0.00027397,3]